bitfinex/quotes_BTCUSD_20250614
["timestamp","ask_amount","ask_price","bid_price","bid_amount"]
[1749909929126,6.05934568,105130.0,105120.0,0.27032151]
[1749909931956,5.85579355,105130.0,105120.0,0.27032151]
[1749909932177,0.01713653,105130.0,105120.0,1.02663125]
[1749909932350,0.03968,105130.0,105120.0,1.02663125]
[1749909932548,0.03968,105130.0,105120.0,1.12278047]
[1749909932753,0.03968,105130.0,105120.0,0.36647073]
[1749909933154,0.04919121,105130.0,105120.0,0.36647073]
[1749909933403,6.61976025,105140.0,105130.0,0.25057565]
[1749909934507,6.62176025,105140.0,105130.0,0.25057565]
[1749909934734,6.61506767,105140.0,105130.0,0.25057565]
[1749909934954,0.39772747,105140.0,105130.0,0.25057565]
[1749909935169,0.40787927,105140.0,105130.0,1.0624862]
[1749909935393,0.40787927,105140.0,105130.0,0.30617646]
[1749909935871,0.40787927,105140.0,105130.0,0.25057565]
[1749909937596,0.43918219,105140.0,105130.0,0.25057565]
[1749909937813,0.44869268,105140.0,105130.0,0.25057565]
[1749909938929,1.20500242,105140.0,105130.0,0.25057565]
[1749909939108,1.21451309,105140.0,105130.0,0.25057565]
[1749909939345,1.17483309,105140.0,105130.0,0.25057565]
[1749909939552,1.21451309,105140.0,105130.0,0.25057565]
[1749909941380,1.20500242,105140.0,105130.0,0.25057565]
[1749909941594,1.21451309,105140.0,105130.0,0.25057565]
[1749909941810,1.17483309,105140.0,105130.0,0.25057565]
[1749909942018,1.21451309,105140.0,105130.0,0.25057565]
[1749909944511,1.22402385,105140.0,105130.0,0.25057565]
[1749909950639,1.22402385,105140.0,105130.0,0.34672487]
[1749909950843,1.22402385,105140.0,105130.0,0.25057565]
[1749909951545,1.18434385,105140.0,105130.0,0.25057565]
[1749909951774,1.22402385,105140.0,105130.0,0.25057565]
[1749909952517,1.18434385,105140.0,105130.0,0.25057565]
[1749909952730,1.22402385,105140.0,105130.0,0.25057565]
[1749909954077,1.01549422,105140.0,105130.0,0.25057565]
[1749909954618,1.02500516,105140.0,105130.0,0.25057565]
[1749909955044,0.98532516,105140.0,105130.0,0.25057565]
[1749909955253,1.02500516,105140.0,105130.0,0.25057565]
[1749909957292,0.98532516,105140.0,105130.0,0.25057565]
[1749909957730,1.02500516,105140.0,105130.0,0.25057565]
[1749909959078,1.22473875,105140.0,105130.0,0.24106426]
[1749909959311,1.35052683,105140.0,105130.0,0.0159]
[1749909959540,1.35052683,105140.0,105110.0,0.21566736]
[1749909959541,0.19975268,105130.0,105110.0,0.21566736]
[1749909959769,0.77533425,105120.0,105110.0,0.25019422]
[1749909960015,0.78484682,105120.0,105110.0,0.25019422]
[1749909960231,0.78484691,105120.0,105110.0,0.25019422]
[1749909960442,0.78484673,105120.0,105110.0,0.25019422]
[1749909960655,0.79435939,105120.0,105110.0,0.25019422]
[1749909960869,0.79435939,105120.0,105110.0,0.25107202]
[1749909961079,0.78484673,105120.0,105110.0,0.25107202]
[1749909961712,0.78484682,105120.0,105110.0,0.25107202]
[1749909961928,0.78484682,105120.0,105110.0,0.25307202]
[1749909962137,0.78484682,105120.0,105110.0,0.25207202]
[1749909962348,0.77533425,105120.0,105110.0,0.25207202]
[1749909962563,0.76582186,105120.0,105110.0,0.25507202]
[1749909962782,1.11533262,105130.0,105120.0,0.24999646]
[1749909963000,0.56253473,105130.0,105120.0,0.24999646]
[1749909963907,1.31884447,105130.0,105120.0,0.24999646]
[1749909964130,1.31884447,105130.0,105120.0,0.25099646]
[1749909964574,1.31884438,105130.0,105120.0,0.25099646]
[1749909965256,1.09630974,105130.0,105120.0,0.25099646]
[1749909965481,5.76182475,105140.0,105130.0,0.24997565]
[1749909965709,6.56732552,105140.0,105130.0,0.24997565]
[1749909965933,6.55781449,105140.0,105130.0,0.24997565]
[1749909966158,1.50781449,105140.0,105130.0,0.24997565]
[1749909966383,0.54799372,105140.0,105130.0,0.24997565]
[1749909966607,0.54799372,105140.0,105130.0,0.34612487]
[1749909966608,0.18897256,105140.0,105130.0,0.34612487]
[1749909966844,0.39248296,105140.0,105130.0,0.34612487]
[1749909967055,0.23816296,105140.0,105130.0,0.24997565]
[1749909967918,0.24016296,105140.0,105130.0,0.24997565]
[1749909968339,0.23065256,105140.0,105130.0,0.24997565]
[1749909968554,0.24016296,105140.0,105130.0,0.24997565]
[1749909968781,0.24967345,105140.0,105130.0,0.24997565]
[1749909969209,0.24016296,105140.0,105130.0,0.24997565]
[1749909970270,0.19097256,105140.0,105130.0,0.24997565]
[1749909970499,0.24016296,105140.0,105130.0,1.00628539]
[1749909971378,0.23065256,105140.0,105130.0,1.00628539]
[1749909977274,0.19097256,105140.0,105130.0,1.00628539]
[1749909977493,0.23065256,105140.0,105130.0,1.00628539]
[1749909978878,0.23065256,105140.0,105130.0,0.24997565]
[1749909979318,0.23065256,105140.0,105130.0,0.40429565]
[1749909979745,1.0311944,105140.0,105130.0,0.23437565]
[1749909979954,1.12734362,105140.0,105130.0,0.24388723]
[1749909980160,1.0311944,105140.0,105130.0,0.22828723]
[1749909983524,0.24967372,105140.0,105130.0,0.24438723]
[1749909983724,1.00598346,105140.0,105130.0,0.24438723]
[1749909984140,1.00598346,105140.0,105130.0,0.26108723]
[1749909984475,1.01549431,105140.0,105130.0,0.26108723]
[1749909984757,1.00598346,105140.0,105130.0,0.26108723]
[1749909985378,1.0154944,105140.0,105130.0,0.26108723]
[1749909986821,1.01549431,105140.0,105130.0,0.26108723]
[1749909989411,1.02500525,105140.0,105130.0,0.26108723]
[1749909992183,1.00598346,105140.0,105130.0,0.26108723]
[1749909992398,1.02500516,105140.0,105130.0,0.26108723]
[1749909996709,0.26869542,105140.0,105130.0,0.26108723]
[1749909996972,1.01549422,105140.0,105130.0,0.26108723]
[1749909997203,1.02500516,105140.0,105130.0,0.26108723]
[1749909999024,1.21522835,105140.0,105130.0,0.22536426]
[1749909999240,1.21522835,105140.0,105130.0,0.23487584]
[1749910001420,1.21522835,105140.0,105130.0,0.24438732]
[1749910002742,1.20571768,105140.0,105130.0,0.22536426]
[1749910003367,1.20571768,105140.0,105130.0,0.23487584]
[1749910005918,1.20571768,105140.0,105130.0,0.24438732]
[1749910007334,1.005984,105140.0,105130.0,0.24438732]
[1749910007555,1.005984,105140.0,105130.0,0.25389871]
[1749910007768,1.01549503,105140.0,105130.0,0.25389871]
[1749910008734,1.01549503,105140.0,105130.0,0.27059871]
[1749910009188,1.005984,105140.0,105130.0,0.27059871]
[1749910009392,1.01549449,105140.0,105130.0,0.27059871]
[1749910013040,1.21522817,105140.0,105130.0,0.27059871]
[1749910014725,1.21522817,105140.0,105130.0,0.26108732]
[1749910018330,1.20571768,105140.0,105130.0,0.0161]
[1749910018532,1.30568585,105140.0,105130.0,0.20634065]
[1749910018736,1.32138585,105140.0,105130.0,0.19975268]
[1749910018894,1.32138585,105140.0,105130.0,0.20926462]
[1749910019110,1.32138585,105140.0,105130.0,0.19975268]
[1749910020527,1.30568585,105140.0,105130.0,0.19975268]
[1749910020879,1.20002551,105140.0,105130.0,0.19975268]
[1749910021086,1.20002551,105140.0,105130.0,0.00951203]
[1749910021087,1.21572551,105140.0,105130.0,0.00951203]
[1749910021489,1.21572551,105140.0,105130.0,0.19975268]
[1749910021699,0.01902315,105130.0,105120.0,0.40467556]
[1749910022551,0.028535,105130.0,105120.0,0.40467556]
[1749910022948,0.028535,105130.0,105120.0,0.40467628]
[1749910022949,0.80386808,105130.0,105120.0,0.40467628]
[1749910023387,0.04755834,105130.0,105120.0,0.25039628]
[1749910023595,1.04232263,105130.0,105120.0,0.2154715]
[1749910023804,1.04232263,105130.0,105120.0,0.0167]
[1749910023805,1.03281105,105130.0,105120.0,0.0167]
[1749910023976,6.03127427,105130.0,105120.0,0.001]
[1749910024257,6.05410911,105130.0,105120.0,0.01051293]
[1749910024635,6.05410911,105130.0,105120.0,0.001]
[1749910025039,6.39410056,105130.0,105120.0,0.001]
[1749910025447,6.39410056,105130.0,105120.0,0.01051293]
[1749910025992,6.49024978,105130.0,105120.0,0.01051293]
[1749910026599,6.49024978,105130.0,105120.0,0.001]
[1749910026756,6.39410056,105130.0,105120.0,0.001]
[1749910027539,6.37127427,105130.0,105120.0,0.001]
[1749910029422,6.37127427,105130.0,105120.0,0.0177]
[1749910030627,6.37127427,105130.0,105120.0,0.21747168]
[1749910031192,6.46742349,105130.0,105120.0,0.0177]
[1749910032695,6.37127427,105130.0,105120.0,0.0177]
[1749910033751,6.36176242,105130.0,105120.0,0.0177]
[1749910034966,6.34606242,105130.0,105120.0,0.0177]
[1749910035191,6.54606242,105130.0,105120.0,0.0177]
[1749910035406,6.81198418,105130.0,105120.0,0.001]
[1749910035612,6.91482671,105130.0,105120.0,0.001]
[1749910035822,6.91482673,105130.0,105120.0,0.001]
[1749910036251,6.9081334,105130.0,105120.0,0.001]
[1749910036475,6.91482673,105130.0,105120.0,0.001]
[1749910037566,6.9081334,105130.0,105120.0,0.001]
[1749910037778,6.91482673,105130.0,105120.0,0.001]
[1749910038417,6.9081334,105130.0,105120.0,0.001]
[1749910038857,6.91482673,105130.0,105120.0,0.001]
[1749910039074,6.9081334,105130.0,105120.0,0.001]
[1749910039347,6.91482673,105130.0,105120.0,0.001]
[1749910039779,6.9081334,105130.0,105120.0,0.001]
[1749910040228,6.80327751,105130.0,105120.0,0.001]
[1749910040451,6.80327751,105130.0,105120.0,0.0167]
[1749910040694,6.79658418,105130.0,105120.0,0.0167]
[1749910040903,6.8032775,105130.0,105120.0,0.0167]
[1749910041149,6.79658418,105130.0,105120.0,0.0167]
[1749910041349,6.89942673,105130.0,105120.0,0.0167]
[1749910042447,6.8927334,105130.0,105120.0,0.0167]
[1749910042668,6.14311699,105130.0,105120.0,0.0167]
[1749910042891,6.80327751,105130.0,105120.0,0.0167]
[1749910043383,5.63890453,105130.0,105120.0,0.24228425]
[1749910044258,5.63890453,105130.0,105120.0,0.99859399]
[1749910044519,5.63890453,105130.0,105120.0,0.24228425]
[1749910044741,5.63890453,105130.0,105120.0,0.25179682]
[1749910045183,6.39521427,105130.0,105120.0,0.25179682]
[1749910045612,6.39521427,105130.0,105120.0,0.2613093]
[1749910045832,5.63890453,105130.0,105120.0,0.2613093]
[1749910046985,5.63890453,105130.0,105120.0,0.25179682]
[1749910047642,5.63890453,105130.0,105120.0,0.2613093]
[1749910048518,5.63890453,105130.0,105120.0,0.27082169]
[1749910049606,5.63890453,105130.0,105120.0,0.24228425]
[1749910049820,5.63890453,105130.0,105120.0,0.23277159]
[1749910050678,5.6617255,105130.0,105120.0,0.23277159]
[1749910050912,5.6617255,105130.0,105120.0,0.24228434]
[1749910051604,0.58890453,105130.0,105120.0,0.24228434]
[1749910052293,0.40817464,105130.0,105120.0,1.03947391]
[1749910052519,0.21179706,105140.0,105130.0,0.21877565]
[1749910052739,0.21179706,105140.0,105130.0,1.00758539]
[1749910052740,0.58763381,105140.0,105130.0,1.00758539]
[1749910052970,0.59714475,105140.0,105130.0,0.25127565]
[1749910053194,0.60665587,105140.0,105130.0,0.25127565]
[1749910053425,0.59714475,105140.0,105130.0,0.24176426]
[1749910053647,0.60665578,105140.0,105130.0,0.25127565]
[1749910053880,0.6181669,105140.0,105130.0,0.25127565]
[1749910055188,0.60865578,105140.0,105130.0,0.25127565]
[1749910055832,0.79887834,105140.0,105130.0,0.24176426]
[1749910056072,0.79887834,105140.0,105130.0,0.25127574]
[1749910056291,0.79887834,105140.0,105130.0,0.24176426]
[1749910056518,0.79887834,105140.0,105130.0,0.25127584]
[1749910056731,1.55518808,105140.0,105130.0,0.25127584]
[1749910057598,1.36496552,105140.0,105130.0,0.27029871]
[1749910057826,1.55518808,105140.0,105130.0,0.26078732]
[1749910058473,0.79887834,105140.0,105130.0,0.26078732]
[1749910059756,0.78936785,105140.0,105130.0,0.25127584]
[1749910060152,1.54567759,105140.0,105130.0,0.25127584]
[1749910061329,1.35545503,105140.0,105130.0,0.26078723]
[1749910062313,0.58963426,105140.0,105130.0,0.26078732]
[1749910062522,0.58963426,105140.0,105130.0,0.27029871]
[1749910062731,1.345944,105140.0,105130.0,0.27029871]
[1749910063145,1.35545503,105140.0,105130.0,0.27029871]
[1749910064182,0.59914475,105140.0,105130.0,0.27029871]
[1749910064392,1.35545449,105140.0,105130.0,0.27029871]
[1749910064610,0.53097256,105140.0,105130.0,1.02660845]
[1749910064823,0.58028296,105140.0,105130.0,1.02660845]
[1749910065032,0.58979354,105140.0,105130.0,0.27029871]
[1749910066321,0.59930439,105140.0,105130.0,0.27129871]
[1749910066530,0.60681533,105140.0,105130.0,0.27129871]
[1749910066753,1.36312507,105140.0,105130.0,0.27129871]
[1749910067354,1.3726361,105140.0,105130.0,0.27129871]
[1749910067976,1.36312507,105140.0,105130.0,0.27129871]
[1749910068132,1.3726361,105140.0,105130.0,0.27129871]
[1749910069350,1.37263682,105140.0,105130.0,0.27129871]
[1749910069762,1.56285938,105140.0,105130.0,0.25227584]
[1749910070026,1.5533488,105140.0,105130.0,0.26178732]
[1749910070239,0.79703906,105140.0,105130.0,0.26178732]
[1749910070457,1.36312624,105140.0,105130.0,0.27129871]
[1749910073522,1.5533488,105140.0,105130.0,0.26178732]
[1749910074394,1.5533488,105140.0,105130.0,0.25227584]
[1749910074636,1.53432701,105140.0,105130.0,0.0335]
[1749910074853,1.55713729,105140.0,105130.0,0.0172]
[1749910075118,1.56382997,105140.0,105130.0,0.0172]
[1749910075336,1.55713729,105140.0,105130.0,0.0172]
[1749910075561,1.55713729,105140.0,105130.0,0.20744065]
[1749910075778,1.53432701,105140.0,105130.0,0.24186435]
[1749910075995,1.53432701,105140.0,105130.0,0.23235259]
[1749910077363,1.53432701,105140.0,105130.0,0.25137583]
[1749910077601,1.53432701,105140.0,105130.0,0.24186435]
[1749910077826,0.77801727,105140.0,105130.0,0.25137602]
[1749910078071,1.53432701,105140.0,105130.0,0.25137602]
[1749910078284,1.53432701,105140.0,105130.0,0.2608876]
[1749910079577,1.55714621,105140.0,105130.0,0.2608876]
[1749910081272,1.35741226,105140.0,105130.0,0.2608876]
[1749910081453,1.37643423,105140.0,105130.0,0.2608876]
[1749910081906,1.56665679,105140.0,105130.0,0.2608876]
[1749910082548,1.57616728,105140.0,105130.0,0.2608876]
[1749910084259,0.62012386,105140.0,105130.0,0.27039899]
[1749910084485,1.36312534,105140.0,105130.0,0.27039899]
[1749910084705,1.37263637,105140.0,105130.0,0.27039899]
[1749910084916,0.57828296,105140.0,105130.0,1.12285795]
[1749910085168,0.23828296,105140.0,105130.0,1.12285795]
[1749910085391,0.22877256,105140.0,105130.0,0.27039899]
[1749910085598,0.23828296,105140.0,105130.0,1.02670873]
[1749910086650,0.22877256,105140.0,105130.0,1.02670873]
[1749910086882,0.23828296,105140.0,105130.0,1.02670873]
[1749910087109,0.22877256,105140.0,105130.0,1.02670873]
[1749910087318,0.23828296,105140.0,105130.0,1.02670873]
[1749910088601,0.18897256,105140.0,105130.0,1.12285795]
[1749910088816,0.19848287,105140.0,105130.0,1.12285795]
[1749910090103,0.18897256,105140.0,105130.0,1.12285795]
[1749910090340,0.19848287,105140.0,105130.0,1.12285795]
[1749910091188,0.19848287,105140.0,105130.0,1.02670873]
[1749910092062,0.18897256,105140.0,105130.0,1.02670873]
[1749910092287,0.19848287,105140.0,105130.0,1.02670873]
[1749910092495,0.18897256,105140.0,105130.0,1.02670873]
[1749910092708,0.19848287,105140.0,105130.0,1.02670873]
[1749910092928,0.18897256,105140.0,105130.0,1.02670873]
[1749910095345,0.18897256,105140.0,105130.0,1.12285795]
[1749910099665,0.15766964,105140.0,105130.0,1.12285795]
[1749910099896,0.16717995,105140.0,105130.0,1.02670873]
[1749910100129,0.17669044,105140.0,105130.0,1.02670873]
[1749910100353,0.16717995,105140.0,105130.0,1.02670873]
[1749910100623,0.17669035,105140.0,105130.0,1.02670873]
[1749910101910,0.17669044,105140.0,105130.0,0.27039899]
[1749910102803,0.16717995,105140.0,105130.0,0.27039899]
[1749910103246,0.17669044,105140.0,105130.0,0.27039899]
[1749910104155,0.17669035,105140.0,105130.0,0.27039899]
[1749910106066,0.17669035,105140.0,105130.0,1.02670873]
[1749910106951,0.18620093,105140.0,105130.0,1.02670873]
[1749910107180,0.1957116,105140.0,105130.0,1.02670873]
[1749910107385,0.18620093,105140.0,105130.0,0.42487899]
[1749910107610,0.18620093,105140.0,105130.0,0.42495899]
[1749910110883,0.18620093,105140.0,105130.0,1.18126873]
[1749910113028,0.19571169,105140.0,105130.0,1.18126873]
[1749910113279,0.18620093,105140.0,105130.0,0.42495899]
[1749910113481,0.1957116,105140.0,105130.0,0.40947899]
[1749910113707,0.18620093,105140.0,105130.0,0.40947899]
[1749910114185,0.1957116,105140.0,105130.0,0.40947899]
[1749910114408,0.18620093,105140.0,105130.0,0.40947899]
[1749910114655,0.18620093,105140.0,105130.0,0.42567899]
[1749910114884,0.1957116,105140.0,105130.0,0.42567899]
[1749910115108,0.1957116,105140.0,105130.0,1.18198873]
[1749910116450,0.18620093,105140.0,105130.0,1.18198873]
[1749910117091,0.18620093,105140.0,105130.0,1.16578873]
[1749910117299,0.18620093,105140.0,105130.0,1.18098873]
[1749910118772,0.17669035,105140.0,105130.0,1.18098873]
[1749910118995,0.18620093,105140.0,105130.0,1.18098873]
[1749910120404,0.18620084,105140.0,105130.0,1.18098873]
[1749910121933,0.19571151,105140.0,105130.0,1.18098873]
[1749910122620,0.18620084,105140.0,105130.0,1.02650873]
[1749910122847,0.18620084,105140.0,105130.0,1.18078873]
[1749910124423,0.17669035,105140.0,105130.0,1.18078873]
[1749910125270,0.16717995,105140.0,105130.0,1.18078873]
[1749910125727,0.17669035,105140.0,105130.0,1.18078873]
[1749910126209,0.16717995,105140.0,105130.0,1.18078873]
[1749910128666,0.17669053,105140.0,105130.0,1.18078873]
[1749910128894,0.17669044,105140.0,105130.0,1.18078873]
[1749910129141,0.17669053,105140.0,105130.0,0.40927899]
[1749910129357,1.16705556,105140.0,105130.0,0.3835676]
[1749910129598,1.16705556,105140.0,105130.0,0.39307908]
[1749910129841,1.0634711,105140.0,105130.0,0.39307853]
[1749910130054,0.21101196,105140.0,105130.0,0.39307853]
[1749910130263,0.21101196,105140.0,105130.0,0.40967853]
[1749910130264,0.9520217,105140.0,105130.0,0.40967853]
[1749910130482,0.96153264,105140.0,105130.0,0.25539853]
[1749910130694,0.96153264,105140.0,105130.0,0.40975853]
[1749910130903,0.9520217,105140.0,105130.0,0.40975853]
[1749910131351,0.9520217,105140.0,105130.0,0.25539853]
[1749910131566,0.96153264,105140.0,105130.0,0.40975853]
[1749910131775,0.96153255,105140.0,105130.0,0.40975853]
[1749910133283,0.96153318,105140.0,105130.0,0.40975853]
[1749910134350,0.95202224,105140.0,105130.0,0.40975853]
[1749910134553,0.96732224,105140.0,105130.0,0.39315853]
[1749910134773,0.97683318,105140.0,105130.0,0.39315853]
[1749910135210,0.97683363,105140.0,105130.0,0.39315853]
[1749910135427,0.9673226,105140.0,105130.0,0.39315853]
[1749910135635,1.07298285,105140.0,105130.0,0.39315853]
[1749910136916,1.07298285,105140.0,105130.0,0.40885853]
[1749910137984,1.26320586,105140.0,105130.0,0.39934714]
[1749910138206,0.96732296,105140.0,105130.0,0.40885853]
[1749910139509,0.95202296,105140.0,105130.0,0.40885853]
[1749910140364,1.14224552,105140.0,105130.0,0.39934714]
[1749910140592,0.95202296,105140.0,105130.0,0.39934714]
[1749910141020,0.96153408,105140.0,105130.0,0.39934714]
[1749910142348,1.15175664,105140.0,105130.0,0.39934714]
[1749910143211,1.24790586,105140.0,105130.0,0.39934714]
[1749910144118,1.2780351,105140.0,105130.0,0.0167]
[1749910144326,1.2780351,105140.0,105130.0,0.001]
[1749910144327,6.98573785,105140.0,105130.0,0.001]
[1749910144555,7.00573785,105140.0,105130.0,0.001]
[1749910144766,7.03426295,105140.0,105130.0,0.001]
[1749910144976,7.04095623,105140.0,105130.0,0.001]
[1749910145204,6.18180399,105140.0,105130.0,0.001]
[1749910145441,6.91628191,105140.0,105130.0,0.001]
[1749910145663,6.90958863,105140.0,105130.0,0.001]
[1749910145879,6.91828179,105140.0,105130.0,0.001]
[1749910146094,6.91828178,105140.0,105130.0,0.001]
[1749910146311,6.91828179,105140.0,105130.0,0.001]
[1749910146525,0.5397525,105130.0,105120.0,0.23469651]
[1749910146767,1.29606224,105130.0,105120.0,0.23469651]
[1749910146969,1.29606224,105130.0,105120.0,0.22518385]
[1749910147407,1.39221146,105130.0,105120.0,0.0159]
[1749910147632,0.02853771,105120.0,105110.0,0.40489211]
[1749910147841,0.0380501,105120.0,105110.0,0.41440531]
[1749910148933,0.98461859,105120.0,105110.0,0.40489211]
[1749910149158,0.98461859,105120.0,105110.0,0.40689211]
[1749910149371,0.98461859,105120.0,105110.0,0.41640531]
[1749910149581,0.98461859,105120.0,105110.0,0.41940531]
[1749910150008,0.98461859,105120.0,105110.0,0.41952531]
[1749910150232,0.79435984,105120.0,105110.0,0.41952531]
[1749910150445,0.03804992,105120.0,105110.0,0.41952531]
[1749910151369,0.03804992,105120.0,105110.0,1.17583505]
[1749910151588,0.01902451,105120.0,105110.0,1.17583505]
[1749910151802,0.3466934,105130.0,105120.0,0.25169646]
[1749910152067,0.34,105130.0,105120.0,1.0080062]
[1749910152278,0.34951139,105130.0,105120.0,1.0080062]
[1749910152491,0.34,105130.0,105120.0,1.0080062]
[1749910152708,0.34,105130.0,105120.0,1.10415542]
[1749910152930,0.34951121,105130.0,105120.0,1.10415542]
[1749910153340,0.34951121,105130.0,105120.0,1.10515542]
[1749910153558,0.35902269,105130.0,105120.0,1.0090062]
[1749910153776,1.3318226,105140.0,105130.0,0.25137565]
[1749910154412,1.3318226,105140.0,105130.0,0.24186426]
[1749910154629,1.3318226,105140.0,105130.0,0.39642426]
[1749910154840,1.52204516,105140.0,105130.0,0.40593584]
[1749910155050,1.52204516,105140.0,105130.0,0.41544732]
[1749910155265,1.51453467,105140.0,105130.0,0.40593584]
[1749910155475,1.51453467,105140.0,105130.0,0.40593574]
[1749910156542,1.51453467,105140.0,105130.0,0.39642426]
[1749910156967,1.51453467,105140.0,105130.0,0.40593584]
[1749910157431,1.17453467,105140.0,105130.0,0.40593584]
[1749910158264,1.50502391,105140.0,105130.0,0.39642444]
[1749910158474,1.50502391,105140.0,105130.0,0.41544787]
[1749910158706,1.50502391,105140.0,105130.0,0.42495945]
[1749910159479,1.31480135,105140.0,105130.0,0.42495899]
[1749910159846,1.32431175,105140.0,105130.0,0.42495853]
[1749910160438,0.50917995,105140.0,105130.0,0.42495853]
[1749910160639,0.15966964,105140.0,105130.0,1.27741749]
[1749910160980,0.16917995,105140.0,105130.0,1.27741749]
[1749910161322,0.16917995,105140.0,105130.0,1.18126827]
[1749910161536,0.15966964,105140.0,105130.0,1.18126827]
[1749910161734,0.16918004,105140.0,105130.0,1.18126827]
[1749910162465,0.15966964,105140.0,105130.0,1.18126827]
[1749910162640,0.16918004,105140.0,105130.0,1.18126827]
[1749910163631,0.17869071,105140.0,105130.0,0.42495853]
[1749910163960,0.16918004,105140.0,105130.0,0.42495853]
[1749910164182,0.17869062,105140.0,105130.0,0.42495853]
[1749910164817,0.19771223,105140.0,105130.0,0.42495853]
[1749910165643,0.38793479,105140.0,105130.0,0.39642408]
[1749910165923,1.14424453,105140.0,105130.0,0.38062408]
[1749910166128,1.22137277,105140.0,105130.0,0.38054462]
[1749910167203,1.12522355,105140.0,105130.0,0.38054462]
[1749910168845,1.12522355,105140.0,105130.0,0.22606462]
[1749910169053,1.12522355,105140.0,105130.0,0.38050462]
[1749910169257,1.12522355,105140.0,105130.0,0.38997647]
[1749910169477,0.36891381,105140.0,105130.0,0.38997647]
[1749910171094,0.35940314,105140.0,105130.0,0.38046462]
[1749910171724,0.13339958,105140.0,105130.0,0.38046462]
[1749910172134,0.13339958,105140.0,105130.0,0.02631203]
[1749910172391,0.23779899,105130.0,105120.0,0.24949664]
[1749910172601,0.04755834,105130.0,105120.0,0.41340894]
[1749910172817,0.23779899,105130.0,105120.0,0.41340894]
[1749910173026,0.04755834,105130.0,105120.0,0.41340894]
[1749910173231,0.04755816,105130.0,105120.0,0.41340894]
[1749910173444,0.03804631,105130.0,105120.0,0.25900894]
[1749910173654,0.03804631,105130.0,105120.0,0.41440894]
[1749910174288,0.03804631,105130.0,105120.0,0.41540894]
[1749910174496,0.01902288,105130.0,105120.0,0.41540894]
[1749910175135,0.02853455,105130.0,105120.0,0.41540894]
[1749910176580,0.01902288,105130.0,105120.0,0.41540894]
[1749910178332,0.0095113,105130.0,105120.0,0.41540894]
[1749910178754,0.01902278,105130.0,105120.0,0.41540894]
[1749910179584,0.0095113,105130.0,105120.0,0.41540894]
[1749910179788,0.01902278,105130.0,105120.0,0.41540894]
[1749910181253,0.0095113,105130.0,105120.0,0.41540894]
[1749910181456,0.01902278,105130.0,105120.0,0.41540894]
[1749910182928,0.02853436,105130.0,105120.0,0.41540894]
[1749910183191,0.01902278,105130.0,105120.0,0.41540894]
[1749910183432,0.02853454,105130.0,105120.0,0.41540894]
[1749910183708,0.02853436,105130.0,105120.0,0.41540894]
[1749910183977,0.23779871,105130.0,105120.0,0.39972903]
[1749910184245,0.04755806,105130.0,105120.0,0.40924133]
[1749910185320,0.9005331,105130.0,105120.0,0.23589664]
[1749910185533,1.19355926,105130.0,105120.0,0.002]
[1749910185953,1.21638913,105130.0,105120.0,0.002]
[1749910186367,1.12023991,105130.0,105120.0,0.002]
[1749910189422,1.09741004,105130.0,105120.0,0.002]
[1749910189843,1.09741004,105130.0,105120.0,0.21128443]
[1749910190041,1.08151004,105130.0,105120.0,0.22748443]
[1749910190250,0.40926435,105130.0,105120.0,0.23699691]
[1749910190747,0.40926435,105130.0,105120.0,0.24338443]
[1749910190958,0.40926435,105130.0,105120.0,0.26240966]
[1749910191162,0.41877638,105130.0,105120.0,0.27192214]
[1749910191378,0.22853573,105130.0,105120.0,0.2719216]
[1749910191607,0.42820416,105140.0,105130.0,0.23447592]
[1749910191820,0.42820416,105140.0,105130.0,0.25988731]
[1749910191821,5.12490507,105140.0,105130.0,0.25988731]
[1749910192033,0.07772313,105140.0,105130.0,0.25988731]
[1749910192492,0.06821201,105140.0,105130.0,0.25988731]
[1749910192766,0.08723416,105140.0,105130.0,0.25988731]
[1749910192968,0.08823416,105140.0,105130.0,0.25988731]
[1749910193178,0.06921192,105140.0,105130.0,0.25988731]
[1749910193391,0.07872286,105140.0,105130.0,0.25988731]
[1749910194031,0.06921138,105140.0,105130.0,0.25988731]
[1749910195165,0.08723317,105140.0,105130.0,0.25988731]
[1749910195368,0.07772223,105140.0,105130.0,0.25988731]
[1749910195577,0.07772223,105140.0,105130.0,0.26188731]
[1749910195782,0.02853138,105140.0,105130.0,0.51251653]
[1749910195999,0.03804214,105140.0,105130.0,0.41636731]
[1749910196186,0.04755308,105140.0,105130.0,0.41636731]
[1749910196808,0.03804214,105140.0,105130.0,0.41636731]
[1749910197010,0.04755308,105140.0,105130.0,0.41636731]
[1749910199520,0.03804277,105140.0,105130.0,0.41636731]
[1749910202929,0.04755452,105140.0,105130.0,0.41666731]
[1749910204171,0.9005121,105140.0,105130.0,0.02721203]
[1749910204379,0.9042971,105140.0,105130.0,0.18161203]
[1749910204593,0.9042971,105140.0,105130.0,0.37185268]
[1749910204772,0.9042971,105140.0,105130.0,0.38136462]
[1749910205635,0.89478607,105140.0,105130.0,0.21745268]
[1749910206060,0.89478607,105140.0,105130.0,0.02721203]
[1749910206273,0.88527495,105140.0,105130.0,0.02721203]
[1749910208307,0.88527495,105140.0,105130.0,0.21745268]
[1749910208734,0.22254029,105140.0,105130.0,0.23647611]
[1749910208950,0.19973359,105140.0,105130.0,0.21745268]
[1749910209336,0.19973359,105140.0,105130.0,0.22696462]
[1749910209550,0.19973359,105140.0,105130.0,0.24598823]
[1749910209972,0.19973359,105140.0,105130.0,0.23647647]
[1749910211010,0.19973359,105140.0,105130.0,0.24598814]
[1749910211223,0.20924435,105140.0,105130.0,0.27259962]
[1749910212890,0.01902179,105140.0,105130.0,0.27259962]
[1749910213109,0.00951049,105140.0,105130.0,0.27259898]
[1749910213324,0.01902098,105140.0,105130.0,0.25357482]
[1749910213531,0.03804277,105140.0,105130.0,0.25357482]
[1749910214571,0.04755326,105140.0,105130.0,0.25357482]
[1749910214787,0.23777654,105140.0,105130.0,0.23455241]
[1749910214996,0.22826605,105140.0,105130.0,0.39079602]
[1749910215207,0.2282665,105140.0,105130.0,0.39079602]
[1749910215641,0.2282665,105140.0,105130.0,0.4003075]
[1749910216467,0.21875565,105140.0,105130.0,0.38128444]
[1749910216675,0.21875565,105140.0,105130.0,0.39079611]
[1749910216902,0.02853309,105140.0,105130.0,0.40030759]
[1749910217122,0.02853309,105140.0,105130.0,0.42571898]
[1749910217346,0.21875565,105140.0,105130.0,0.41620759]
[1749910217555,0.21875565,105140.0,105130.0,0.40669611]
[1749910217805,0.21875565,105140.0,105130.0,0.41620769]
[1749910220008,0.21875565,105140.0,105130.0,0.42571908]
[1749910220213,0.21875565,105140.0,105130.0,0.41620769]
[1749910221303,0.21875565,105140.0,105130.0,0.40669611]
[1749910221534,0.21875565,105140.0,105130.0,0.41620769]
[1749910221718,0.02853309,105140.0,105130.0,0.42571908]
[1749910222531,0.06821309,105140.0,105130.0,0.42571908]
[1749910222732,0.25843565,105140.0,105130.0,0.42571908]
[1749910223337,1.01471092,105140.0,105130.0,0.42571908]
[1749910223521,1.03751762,105140.0,105130.0,0.42571908]
[1749910224336,1.03751762,105140.0,105130.0,0.41620769]
[1749910224775,1.02800668,105140.0,105130.0,0.40669611]